Cogmind - Beta 13 @@@ ROGUE MODE // 2024.05.09 @ 10:21:55 Player: SlyFyer Result: Self-destructed Performance ------------- Evolutions (2) 1000 Regions Visited (7) 1400 Robots Destroyed (63) 315 Value Destroyed (2108) 2108 Prototype IDs (23) 460 Alien Tech Used (0) 0 Bonus (1313) 1313 TOTAL SCORE: 6596 Bonus ------- High Alert Combat Kills 245 Follower Combat Kills 68 Entered Garrisons 200 Used RIF Installer 500 Aligned with FarCom 300 Cogmind --------- Core Integrity 145/550 Matter 270/300 Energy 58/100 System Corruption 8% Temperature Cool (9) Movement Core (150) Ox2 Location -8/Materials Parts ------- > --- POWER (1) -------- (None) > --- PROPULSION (3) --- (None) > --- UTILITY (4) ------ Core Analyzer > --- WEAPON (3) ------- Heavy Ion Cannon Mini Grenade Launcher > --- INVENTORY (5) ---- Light Treads Light Treads Cryofiber Web Improved Heat Sink High-capacity Matter Pod (200) Peak State ------------ > --- POWER ------------ Nuclear Core > --- PROPULSION ------- Improved Treads Improved Treads Improved Treads > --- UTILITY ---------- Cooling System High-capacity Storage Unit Heavy Armor Plating > --- WEAPON ----------- Heavy Ion Cannon Heavy Ion Cannon Heavy Ion Cannon > --- INVENTORY -------- Deuterium Engine Nuclear Core Light Treads Light Treads Improved Treads High-capacity Matter Pod Trap Scanner Machine Analyzer Modified TNC Targeting Computer Core Analyzer Core Analyzer Heavy Armor Plating Particle Cannon Heavy Ion Cannon Mini Grenade Launcher Mini Grenade Launcher Improved Datajack Mining Claw [Rating: 35] Favorites ----------- Power Ion Engine Engine Ion Engine Power Core Nuclear Core Propulsion Improved Treads Treads Improved Treads Utility High-capacity Storage Unit Device Seismic Detector Storage High-capacity Storage Unit Processor Core Analyzer Protection Heavy Armor Plating Weapon Heavy Ion Cannon Energy Gun Particle Gun Energy Cannon Heavy Ion Cannon Launcher Mini Grenade Launcher Slashing Weapon Mining Claw Build | -11 -10 -10 -10 -9 -8 -8 -8 ------- Run | Yrd Mat Min Exi Min Mat Gar Mat Slots Evolved 4 | . . . . . 4 . . Power . | . . . . . . . . Propulsion 1 | . . . . . 1 . . Utility 2 | . . . . . 2 . . Weapon 1 | . . . . . 1 . . Parts Attached 48 | 7 9 . 2 . 10 18 2 Power 3 | 1 . . . . 1 1 . Engine 2 | 1 . . . . . 1 . Core 1 | . . . . . 1 . . Reactor . | . . . . . . . . Propulsion 14 | 2 4 . . . 1 6 1 Treads 14 | 2 4 . . . 1 6 1 Leg . | . . . . . . . . Wheel . | . . . . . . . . Hover . | . . . . . . . . Flight . | . . . . . . . . Utility 13 | 2 . . 1 . 4 6 . Device 4 | 1 . . . . 1 2 . Storage 2 | 1 . . 1 . . . . Processor 2 | . . . . . . 2 . Hackware . | . . . . . . . . Protection 5 | . . . . . 3 2 . Artifact . | . . . . . . . . Weapon 18 | 2 5 . 1 . 4 5 1 Energy Gun 9 | 2 3 . . . 1 2 1 Energy Cannon 5 | . . . 1 . 3 1 . Ballistic Gun . | . . . . . . . . Ballistic Cannon . | . . . . . . . . Launcher 2 | . . . . . . 2 . Special Weapon . | . . . . . . . . Impact Weapon . | . . . . . . . . Slashing Weapon 2 | . 2 . . . . . . Piercing Weapon . | . . . . . . . . Special Melee Weapon . | . . . . . . . . Unidentified Prototypes . | . . . . . . . . Parts Lost 15 | . . . . . . 14 1 Power 1 | . . . . . . 1 . Propulsion 5 | . . . . . . 4 1 Utility 4 | . . . . . . 4 . Weapon 5 | . . . . . . 5 . Highest Loss Streak 8 | . . . . . . 8 1 To Critical Strikes . | . . . . . . . . Average Slot Usage (%) 95 | . 99 100 100 100 96 87 90 Engine 9 | . 14 14 14 14 1 5 9 Core 2 | . . . . . 7 3 . Treads 26 | . 27 28 28 28 27 25 24 Device 11 | . 14 14 14 14 9 6 9 Storage 11 | . 14 14 14 14 9 9 9 Processor 2 | . . . . . . 8 9 Protection 4 | . . . . . 15 5 9 Energy Gun 13 | . 25 28 17 14 3 3 3 Energy Cannon 10 | . . . 10 14 22 14 9 Launcher 1 | . . . . . . 5 9 Naked Turns . | . . . . . . . . Heaviest Build 88 | 14 16 16 52 52 88 88 70 Greatest Support 69 | 40 46 46 46 46 69 69 63 Greatest Overweight (x) 5 | . 5 . 1 1 1 1 2 Average Overweight (x) . | . . . . 1 . . 1 Largest Inventory Capacity 20 | 8 8 8 20 20 20 20 20 Average Capacity 15 | 7 8 8 14 20 20 20 19 Most Carried 20 | 5 8 8 10 12 20 20 15 Average Carried 11 | 2 7 8 8 11 16 14 9 Final Capacity 20 | 8 8 8 20 20 20 20 20 Final Carried 20 | 2 8 8 10 12 20 9 14 Class Distribution -------------------- 57% | Mutant 12% | Skirmisher 9% | Scavenger-Mutant 8% | Tank 4% | Scavenger-Gunner 3% | Scavenger-Skirmisher Dominant Class ---------------- Mutant | -10/Materials Mutant | -10/Mines Mutant | -10/Exiles Mutant | -9/Mines Tank | -8/Materials Skirmisher | -8/Garrison Scavenger-Mutant | -8/Materials Resources | -11 -10 -10 -10 -9 -8 -8 -8 ----------- Run | Yrd Mat Min Exi Min Mat Gar Mat Matter Collected 811 | 156 184 20 40 . 90 306 15 Remotely . | . . . . . . . . Salvage Created 2188 | 86 489 83 . . 265 1005 260 Parts 119 | 4 37 4 . . 11 51 12 Haulers Intercepted 2 | . 2 . . . . . . Recyclers Shooed 3 | . 1 1 . . . . 1 Parts Field Recycled . | . . . . . . . . Retrieved Matter . | . . . . . . . . Parts Self-Destructed . | . . . . . . . . Prevented . | . . . . . . . . Kills | -11 -10 -10 -10 -9 -8 -8 -8 ------- Run | Yrd Mat Min Exi Min Mat Gar Mat Combat Hostiles Destroyed 52 | . 13 . . . 5 31 3 Guns 16 | . 12 . . . . 4 . Cannons 25 | . . . . . 5 17 3 AOE 9 | . . . . . . 9 . Classes Destroyed 15 | 2 5 1 . . 2 4 1 Worker 1 | . 1 . . . . . . Builder 1 | . . 1 . . . . . Tunneler 1 | 1 . . . . . . . Hauler 2 | . 2 . . . . . . Recycler 3 | 1 . 1 . . . . 1 Operator 1 | . . . . . . . 1 Watcher 2 | . 2 . . . . . . Swarmer 17 | . 6 . . . . 11 . Grunt 21 | . 7 . . . 2 10 2 Brawler 1 | . . . . . . 1 . Duelist 1 | . . . . . . 1 . Sentry 9 | . . . . . 2 6 1 Specialist 1 | . . . . . . 1 . Hunter 1 | . . . . . 1 . . Programmer 1 | . . . . . . 1 . Best Kill Streak 12 | 1 3 2 . . 2 12 4 Combat Bots Only 12 | . 3 . . . 2 12 3 Max Kills in Single Turn 3 | 1 1 1 . . 1 3 1 Gunslinging . | . . . . . . . . Exploded 3 | . . . . . . 3 . Melee . | . . . . . . . . Uniques/NPCs Destroyed . | . . . . . . . . Combat | -11 -10 -10 -10 -9 -8 -8 -8 -------- Run | Yrd Mat Min Exi Min Mat Gar Mat Hostile Shots Fired 298 | . 47 . . . 15 212 24 Missed 71 | . 14 . . . 4 45 8 Damage Taken 3184 | . 330 . . . 173 2410 271 Core 450 | . 45 . . . 27 350 28 Absorbed by Shields . | . . . . . . . . Redirected to Shielding 6 | . . . . . 6 . . Core Remaining (%) 91 | 100 . . . 82 . . . Volleys Fired 170 | 2 54 5 . . 13 78 18 Largest 3 | 2 2 2 . . 3 3 1 Hottest 195 | 90 115 115 . . 195 195 65 Shots Fired 321 | 4 101 10 . . 35 154 17 Gun 153 | 4 101 10 . . . 38 . Cannon 157 | . . . . . 35 105 17 Launcher 11 | . . . . . . 11 . Special . | . . . . . . . . Kinetic . | . . . . . . . . Thermal 310 | 4 101 10 . . 35 143 17 Explosive 11 | . . . . . . 11 . Electromagnetic . | . . . . . . . . Robot Hit Streak 14 | 4 10 3 . . 11 14 9 Robot Miss Streak 5 | . 5 2 . . 4 4 2 Penetration Max . | . . . . . . . . Secondary Targets 1 | . 1 . . . . . . Max Gunslinging Chain 1 | . 1 . . . . . . Shots Hit Robots 194 | 4 60 4 . . 18 94 14 Core Hits 93 | 3 24 3 . . 7 49 7 Critical Kills . | . . . . . . . . Critical Parts Destroyed . | . . . . . . . . Critical Strikes 6 | 1 1 1 . . . 3 . Burn 6 | 1 1 1 . . . 3 . Melee Attacks 12 | . 12 . . . . . . Impact . | . . . . . . . . Slashing 12 | . 12 . . . . . . Piercing . | . . . . . . . . Sneak Attacks 2 | . 2 . . . . . . Combat Hostiles . | . . . . . . . . Follow-up Attacks . | . . . . . . . . Damage Inflicted 5058 | 47 886 57 . . 542 3119 407 Guns 1256 | 47 790 57 . . . 362 . Cannons 2728 | . . . . . 542 1779 407 Explosions 978 | . . . . . . 978 . Melee 96 | . 96 . . . . . . Ramming . | . . . . . . . . Kinetic . | . . . . . . . . Thermal 3984 | 47 790 57 . . 542 2141 407 Explosive 978 | . . . . . . 978 . Electromagnetic . | . . . . . . . . Impact . | . . . . . . . . Slashing 96 | . 96 . . . . . . Piercing . | . . . . . . . . Highest Corruption 8 | . . . . . . 8 8 Average Corruption 8 | . . . . . . 8 8 Corruption Purged . | . . . . . . . . Corruption Blocked . | . . . . . . . . Effects 31 | . . . . . . 22 9 Message Errors 12 | . . . . . . 8 4 Matter Fused 4 | . . . . . . 2 2 Heat Flow Errors 1 | . . . . . . 1 . Energy Discharges 4 | . . . . . . 3 1 Parts Rejected 1 | . . . . . . 1 . Data Loss (minor) 5 | . . . . . . 5 . Data Loss (major) 2 | . . . . . . 1 1 Misfires 1 | . . . . . . 1 . Weapon Failures 1 | . . . . . . . 1 Overload Shots . | . . . . . . . . Overflow Damage 115 | . 5 . . . 6 101 3 Projectiles 15 | . . . . . 6 6 3 Explosions 95 | . . . . . . 95 . Melee 5 | . 5 . . . . . . Knockbacks . | . . . . . . . . Impact . | . . . . . . . . Kinetic . | . . . . . . . . Secondary . | . . . . . . . . Self-Inflicted Damage 229 | . . . . . . 229 . Shots 6 | . . . . . . 6 . Rammed . | . . . . . . . . Targets Rammed . | . . . . . . . . Kicked . | . . . . . . . . Crushed . | . . . . . . . . Highest Temperature 456 | 30 294 54 . . 257 456 20 Average Temperature 124 | 18 88 32 . . 123 177 12 Received Heat Transfer 1263 | . 129 . . . 126 891 117 Effects 12 | . 2 . . . 2 8 . Shutdowns 2 | . . . . . . 2 . Energy Bleed 4 | . 2 . . . 1 1 . Interference 4 | . . . . . 1 3 . Matter Decay 1 | . . . . . . 1 . Damage (minor) 1 | . . . . . . 1 . Siege Activations . | . . . . . . . . Robots Corrupted . | . . . . . . . . Combat Hostiles . | . . . . . . . . Parts Fried . | . . . . . . . . Impact Corruptions . | . . . . . . . . Robots Melted 2 | . 1 . . . . 1 . Combat Hostiles 2 | . 1 . . . . 1 . Parts Melted 20 | 2 5 2 . . . 10 1 Heat Transferred 7441 | 198 2174 222 . . 740 3552 555 Parts Sabotaged . | . . . . . . . . Parts Stolen . | . . . . . . . . Parts Stripped . | . . . . . . . . Power Chain Reactions . | . . . . . . . . Alert | -11 -10 -10 -10 -9 -8 -8 -8 ------- Run | Yrd Mat Min Exi Min Mat Gar Mat Peak Influence 1033 | 10 280 26 . . 152 1033 615 Initial 503 | . 6 16 . . . . 503 Average 262 | 4 116 20 . . 40 558 562 Maximum Alert Level 3 | . 1 . . . . 3 2 Low Security (%) 62 | 100 85 100 . 100 100 17 . Level 1 9 | . 14 . . . . 14 . Level 2 16 | . . . . . . 34 100 Level 3 11 | . . . . . . 33 . Level 4 . | . . . . . . . . Level 5 . | . . . . . . . . High Security . | . . . . . . . . Max Security . | . . . . . . . . Squads Dispatched 7 | . 4 . . . 1 . 2 Investigation 4 | . 3 . . . 1 . . Extermination . | . . . . . . . . Reinforcement 3 | . 1 . . . . . 2 Assault . | . . . . . . . . Garrison . | . . . . . . . . Intercept . | . . . . . . . . Searches Triggered . | . . . . . . . . Construction Impeded . | . . . . . . . . Haulers Reinforced . | . . . . . . . . Active Scanning Responses . | . . . . . . . . Cargo Convoy Interrupts . | . . . . . . . . Stealth | -11 -10 -10 -10 -9 -8 -8 -8 --------- Run | Yrd Mat Min Exi Min Mat Gar Mat Distress Signals 3 | . 2 . . . 1 . . Communications Jammed . | . . . . . . . . Distress Signals . | . . . . . . . . Times Spotted 70 | . 25 . . . 6 32 7 Peak Tracking Total 9 | . 5 . . . 3 9 4 Tactical Retreats 4 | . 2 . . . . 2 . Traps | -11 -10 -10 -10 -9 -8 -8 -8 ------- Run | Yrd Mat Min Exi Min Mat Gar Mat Traps Triggered 8 | . 1 . . . . 7 . Indirectly . | . . . . . . . . Trap Hack Attempts . | . . . . . . . . Triggered . | . . . . . . . . Disarmed 6 | . 6 . . . . . . Reprogrammed . | . . . . . . . . Reused . | . . . . . . . . Traps Extracted . | . . . . . . . . Installed . | . . . . . . . . Triggered . | . . . . . . . . Machines | -11 -10 -10 -10 -9 -8 -8 -8 ---------- Run | Yrd Mat Min Exi Min Mat Gar Mat Machines Disabled 5 | . . . . . 2 3 . Max in Single Turn 2 | . . . . . 2 1 . Garrison Relay 1 | . . . . . . 1 . Phase Generator 1 | . . . . . . 1 . Machines Repaired . | . . . . . . . . Machines Dismantled . | . . . . . . . . Machines Sabotaged 1 | . . . . . . 1 . Overloaded Fab Kills . | . . . . . . . . Hacking | -11 -10 -10 -10 -9 -8 -8 -8 --------- Run | Yrd Mat Min Exi Min Mat Gar Mat Machines Accessed 14 | . 7 . 1 . 3 2 1 Terminals 9 | . 5 . . . 1 2 1 Fabricators . | . . . . . . . . Repair Stations . | . . . . . . . . Recycling Units 3 | . 2 . . . 1 . . Scanalyzers . | . . . . . . . . Garrison Access 1 | . . . . . 1 . . Total Hacks 28 | . 13 . 1 . 6 5 3 Successful 17 | . 10 . 1 . 2 2 2 Failed 11 | . 3 . . . 4 3 1 Catastrophic 1 | . 1 . . . . . . Database Lockouts . | . . . . . . . . Manual 24 | . 13 . 1 . 4 3 3 Terminals 21 | . 11 . . . 2 5 3 Fabricators . | . . . . . . . . Repair Stations . | . . . . . . . . Recycling Units 4 | . 2 . . . 2 . . Scanalyzers . | . . . . . . . . Garrison Access 2 | . . . . . 2 . . Terminal Hacks 4 | . 2 . 1 . . 1 . Open Door 1 | . . . . . . 1 . Disarm Traps 1 | . 1 . . . . . . Recall Investigation 1 | . 1 . . . . . . Derelict Proto ID Bank 1 | . . . 1 . . . . Fabricator Hacks . | . . . . . . . . Repair Station Hacks . | . . . . . . . . Recycling Unit Hacks . | . . . . . . . . Scanalyzer . | . . . . . . . . Garrison Access Hacks 1 | . . . . . 1 . . Unlock Access 1 | . . . . . 1 . . Unauthorized Hacks 12 | . 8 . . . 1 1 2 Terminals 9 | . 6 . . . . 1 2 Assimilate 1 | . 1 . . . . . . Botnet 4 | . 3 . . . . . 1 Operators 3 | . 2 . . . . . 1 Sabotage 1 | . . . . . . 1 . Fabricators . | . . . . . . . . Repair Stations . | . . . . . . . . Recycling Units 3 | . 2 . . . 1 . . Tunnel 3 | . 2 . . . 1 . . Scanalyzers . | . . . . . . . . Garrison Access . | . . . . . . . . Data Cores Recovered 1 | . . . . . . . 1 Used 1 | . . . . . . . 1 Hacking Detections 10 | . 4 . . . 3 2 1 Full Trace Events . | . . . . . . . . Feedback Events . | . . . . . . . . Feedback Blocked . | . . . . . . . . Robot Schematics Acquired . | . . . . . . . . Robots Built . | . . . . . . . . Authchips . | . . . . . . . . Time . | . . . . . . . . Total Robot Build Rating . | . . . . . . . . Part Schematics Acquired . | . . . . . . . . Parts Built . | . . . . . . . . Authchips . | . . . . . . . . Time . | . . . . . . . . Total Part Build Rating . | . . . . . . . . Parts Repaired . | . . . . . . . . Time . | . . . . . . . . Parts Recycled . | . . . . . . . . Recycled Matter . | . . . . . . . . Retrieved Matter . | . . . . . . . . Retrieved Components . | . . . . . . . . Parts Scanalyzed . | . . . . . . . . Part Schematics Acquired . | . . . . . . . . Parts Damaged . | . . . . . . . . Bothacking | -11 -10 -10 -10 -9 -8 -8 -8 ------------ Run | Yrd Mat Min Exi Min Mat Gar Mat Used RIF Installer 1 | . . . . . . 1 . Robots Hacked . | . . . . . . . . Non-combat . | . . . . . . . . Combat . | . . . . . . . . Robot Hacks Applied . | . . . . . . . . Relay Couplers Released 8 | . . . . . . 8 . Machine Destruction 5 | . . . . . . 5 . Programmers 3 | . . . . . . 3 . Fabnet Peak Effective % . | . . . . . . . . Robots Rewired . | . . . . . . . . Allies Hacked . | . . . . . . . . Hacks Repelled . | . . . . . . . . Allies | -11 -10 -10 -10 -9 -8 -8 -8 -------- Run | Yrd Mat Min Exi Min Mat Gar Mat Total Allies 5 | . 1 2 . . . 2 . Largest Group 3 | . 1 3 1 . . 2 . Highest-Rated Group 51 | . 10 51 31 . . 51 . Highest-Rated Ally 31 | . 10 31 31 . . 31 . Total Orders 2 | . 2 . . . . . . STAY 1 | . 1 . . . . . . FOLLOW 1 | . 1 . . . . . . Ally Attacks 13 | . . 1 . . . 12 . Total Damage 223 | . . 21 . . . 202 . Kills 2 | . . . . . . 2 . Allies Corrupted . | . . . . . . . . Allies Melted 1 | . . . . . . 1 . Intel | -11 -10 -10 -10 -9 -8 -8 -8 ------- Run | Yrd Mat Min Exi Min Mat Gar Mat Robot Analysis Total . | . . . . . . . . Derelict Logs Recovered . | . . . . . . . . Drone Launches . | . . . . . . . . Drone Recoveries . | . . . . . . . . Exploration | -11 -10 -10 -10 -9 -8 -8 -8 ------------- Run | Yrd Mat Min Exi Min Mat Gar Mat Turns Passed 6334 | 79 1723 199 1058 360 867 1809 239 Spaces Moved 2805 | 55 869 116 542 150 360 637 76 Core 28 | 26 1 . . . . . 1 Treads 2777 | 29 868 116 542 150 360 637 75 Legs . | . . . . . . . . Wheels . | . . . . . . . . Hover . | . . . . . . . . Flight . | . . . . . . . . Fastest Speed 50 | 50 160 160 160 240 160 160 150 Average Speed 194 | 108 160 160 194 240 211 229 238 Slowest Speed 300 | 160 300 160 240 240 240 240 240 Overloaded Moves . | . . . . . . . . Propulsion Burnouts . | . . . . . . . . Robots Hopped . | . . . . . . . . Cave-ins Triggered . | . . . . . . . . Exploration Rate (%) 43 | 3 98 26 71 39 23 82 6 Regions Visited 7 Branch Regions 3 Pre-discovered Areas 3 | . 2 . . . 1 . . Known Exits Taken 1 | . . . . . 1 . . Unknown Exits Taken 5 | 1 1 1 1 1 . . . Scrap Searched 2 | . . 1 . 1 . . . Spaces Dug 8 | . 8 . . . . . . Terrain Destroyed 70 | . 8 . . . 4 56 2 Melee 8 | . 8 . . . . . . Projectile 6 | . . . . . 4 . 2 AOE 56 | . . . . . . 56 . Terrain Rammed . | . . . . . . . . Walls Destroyed . | . . . . . . . . Machines Disabled . | . . . . . . . . Actions | -11 -10 -10 -10 -9 -8 -8 -8 --------- Run | Yrd Mat Min Exi Min Mat Gar Mat Total 3382 | 70 1079 120 548 151 440 854 120 Wait 237 | . 105 . . . 23 98 11 Move 2798 | 54 868 115 541 149 360 635 76 Hop . | . . . . . . . . Pick Up 61 | 7 16 . 3 2 22 7 4 Fast Attach 7 | 2 3 . . . . 2 . Attach 29 | 5 . . . . 6 16 2 Detach 5 | . . . . . . . 5 Swap 12 | . 6 . 2 . 4 . . Drop 37 | . 15 . 2 . 12 4 4 Fire 170 | 2 54 5 . . 13 78 18 Melee 12 | . 12 . . . . . . Ram . | . . . . . . . . Kick . | . . . . . . . . Crush . | . . . . . . . . Escape Stasis 14 | . . . . . . 14 . Rewire . | . . . . . . . . Trap . | . . . . . . . . Miscellaneous . | . . . . . . . . Route ------- -11/Scrapyard -10/Materials (discovered 5 exits: [*Mat x3] / [*Min x2]) -10/Mines (discovered 2 exits: [*Mat] / *Exi) -10/Exiles (discovered 2 exits: [*Min x2]) -9/Mines -8/Materials -8/Garrison (discovered 4 exits: *Mat x4) -8/Materials History --------- Turn | Location | Event 7 | -11/Scrapyard | Discovered new exit (range 13) 80 | -11/Scrapyard | Entered Materials 300 | -10/Materials | Build established: Mutant 482 | -10/Materials | Discovered new exit (range 15) 706 | -10/Materials | Discovered new exit (range 16) 973 | -10/Materials | Discovered new exit (range 10) 986 | -10/Materials | Discovered new exit (range 8) 1431 | -10/Materials | Discovered new exit (range 15) 1803 | -10/Materials | Entered Mines 1803 | -10/Mines | Accompanied by 1 ally 1850 | -10/Mines | Discovered new exit (range 4) 1968 | -10/Mines | Assembled infested the area 1991 | -10/Mines | Deemed a non-threat by the Exiles lab entrance 1993 | -10/Mines | Discovered new exit (range 5) 2002 | -10/Mines | Entered Exiles 2002 | -10/Exiles | Accompanied by 1 ally 2032 | -10/Exiles | Led the pair of lost Derelicts to a safe place 2047 | -10/Exiles | Discovered new exit (range 15) 2065 | -10/Exiles | Met 8R-AWN 2102 | -10/Exiles | Met EX-HEX 2170 | -10/Exiles | Met EX-BIN 2201 | -10/Exiles | Aligned with FarCom system 2202 | -10/Exiles | Given EX-Vault access code 2254 | -10/Exiles | Opened EX-Vault 2275 | -10/Exiles | Found Modified TNC 2309 | -10/Exiles | Warned to stay clear of 0b10 Research branches 2369 | -10/Exiles | Met EX-DEC 3022 | -10/Exiles | Discovered new exit (range 12) 3060 | -10/Exiles | Left Exiles lab with Modified TNC 3060 | -10/Exiles | Entered Mines 3398 | -9/Mines | Discovered new exit (range 7) 3420 | -9/Mines | Entered Materials 3420 | -8/Materials | Evolved 4 slots: Propulsion x1, Utility x2, Weapon x1 3820 | -8/Materials | Build established: Tank 4287 | -8/Materials | Identified exit to Garrison 4287 | -8/Materials | Entered Garrison 4373 | -8/Garrison | Build established: Skirmisher 4381 | -8/Garrison | Triggered checkpoint 4437 | -8/Garrison | Phase Generator disabled 4679 | -8/Garrison | Installed Relay Interface Framework 4777 | -8/Garrison | Triggered checkpoint 4967 | -8/Garrison | Destroyed 12 combat bots 4977 | -8/Garrison | Lost 8 parts (1p2n3u2w) 4987 | -8/Garrison | Triggered checkpoint 5039 | -8/Garrison | Discovered new exit (range 15) 5101 | -8/Garrison | Rescued a captive Derelict 5102 | -8/Garrison | Rescued a captive Derelict 5245 | -8/Garrison | Triggered checkpoint 5379 | -8/Garrison | Triggered checkpoint 5408 | -8/Garrison | Core integrity fell below 50% 5557 | -8/Garrison | Triggered checkpoint 5605 | -8/Garrison | Discovered new exit (range 16) 5613 | -8/Garrison | Lost 4 parts (1n3w) 5622 | -8/Garrison | Discovered new exit (range 3) 5737 | -8/Garrison | Triggered checkpoint 5738 | -8/Garrison | Garrison Relay disabled 5889 | -8/Garrison | Triggered checkpoint 5891 | -8/Garrison | Build established: Scavenger-Mutant 6012 | -8/Garrison | Discovered new exit (range 14) 6096 | -8/Garrison | Entered Materials 6335 | -8/Materials | Self-destructed Last Messages --------------- 06221_ Acquired Lgt. Treads. 06222_ R-06 Scavenger collects Heat Sink. 06222_ Destroyed Tractor Beam. 06224_ R-06 Scavenger destroyed. 06225_ Acquired 5 matter. 06231_ Acquired Lgt. Treads. 06237_ Acquired Beam Rifle. 06241_ LO4GJSDI0 ZPA0, M | Z34,T 06259_ Acquired Imp. Datajack. 06260_ H8/8OIDO>O4G>HWXCKI,|